fUSD/lending_fUSD_20260404
["ID","MTS","AMOUNT","RATE_DAILY","PERIOD"]
[419670644,1775275299524,-463.3866,0.00010416,2]
[419670646,1775275319618,198.1063485,0.00010451,2]
[419670647,1775275352334,6772.9161,0.00010416,2]
[419670648,1775275363278,187.72,0.00010389,2]
[419670649,1775275377159,181.43578347,0.00010451,2]
[419670650,1775275386391,500.0,9.786e-05,2]
[419670651,1775275398390,1230.34,9.865e-05,2]
[419670654,1775275435782,278.24788232,0.00010416,2]
[419670655,1775275439994,198.1063485,0.00010416,2]
[419670656,1775275447948,-1944.17425966,0.00010473,2]
[419670657,1775275448141,-3888.34851932,0.00010473,2]
[419670658,1775275448240,-2223.31296136,0.00010473,2]
[419670659,1775275455977,5553.38407728,9.845e-05,2]
[419670660,1775275456000,8448.91592272,9.845e-05,2]
[419670661,1775275514288,4405.7361,0.00010416,2]
[419670662,1775275562968,639.5086692,0.00010473,2]
[419670663,1775275564579,5370.55716022,0.00010473,2]
[419670664,1775275635128,-300.0,0.00010499,2]
[419670665,1775275635151,-231.27871795,0.00010499,2]
[419670666,1775275654559,5000.01,0.00010408,2]
[419670667,1775275654587,5000.01,0.00010408,2]
[419670668,1775275654612,5000.01,0.00010408,2]
[419670669,1775275654639,5000.01,0.00010408,2]
[419670670,1775275654664,5000.01,0.00010408,2]
[419670671,1775275658298,10000.01,8e-05,2]
[419670672,1775275658320,10000.01,8e-05,2]
[419670673,1775275658341,3735.44788944,8e-05,2]
[419670674,1775275666885,-5000.01,0.00010408,2]
[419670675,1775275666985,-5000.01,0.00010408,2]
[419670676,1775275667080,-5000.01,0.00010408,2]
[419670677,1775275667177,-5000.01,0.00010408,2]
[419670678,1775275667320,-5000.01,0.00010408,2]
[419670679,1775275668539,-5000.01,0.00010408,2]
[419670680,1775275668552,-5000.01,0.00010408,2]
[419670681,1775275668569,-5000.01,0.00010408,2]
[419670682,1775275669646,-421.25300112,0.00010408,2]
[419670683,1775275669827,-5000.01,0.00010408,2]
[419670684,1775275669961,-10000.01,0.00010408,2]
[419670685,1775275672457,-10000.01,0.00010408,2]
[419670686,1775275672561,-10000.01,0.00010408,2]
[419670687,1775275672681,-10000.01,0.00010408,2]
[419670688,1775275672922,-5000.01,0.00010408,2]
[419670689,1775275673044,-5000.01,0.00010408,2]
[419670690,1775275673158,-5000.01,0.00010408,2]
[419670691,1775275673253,-5000.01,0.00010408,2]
[419670692,1775275673385,-5000.01,0.00010408,2]
[419670693,1775275673502,-5000.01,0.00010408,2]
[419670694,1775275673595,-5000.01,0.00010408,2]
[419670695,1775275673701,-5000.01,0.00010408,2]
[419670696,1775275675601,-10000.01,0.00010408,2]
[419670697,1775275691606,10000.01,7.945e-05,2]
[419670698,1775275691627,7728.241366,7.945e-05,2]
[419670699,1775275743271,2000.0,9.506e-05,2]
[419670701,1775275751049,-300.0,9.534e-05,2]
[419670702,1775275751071,-150.0,9.534e-05,2]
[419670703,1775275751097,-300.0,9.534e-05,2]
[419670704,1775275751120,-1750.13,9.535e-05,2]
[419670705,1775275751143,-22282.45820427,9.535e-05,2]
[419670706,1775275752265,184.0,7.945e-05,3]
[419670707,1775275754143,-28316.79179573,9.535e-05,2]
[419670708,1775275754165,-261.61695451,0.000101,2]
[419670709,1775275754188,-4307.08457462,0.00010308,2]
[419670710,1775275754210,-385.84390098,0.00010373,2]
[419670711,1775275754230,-1200.0,0.00010407,2]
[419670712,1775275754251,-1000.0,0.00010407,2]
[419670713,1775275754272,-20135.61011416,0.00010408,2]
[419670714,1775275756060,-500.0,0.00010236,2]
[419670715,1775275756083,-500.0,0.00010236,2]
[419670716,1775275756105,-500.0,0.00010236,2]
[419670717,1775275756126,-500.0,0.00010236,2]
[419670718,1775275756146,-500.0,0.00010236,2]
[419670719,1775275756168,-500.0,0.00010236,2]
[419670720,1775275756187,-500.0,0.00010236,2]
[419670721,1775275756208,-500.0,0.00010236,2]
[419670722,1775275756229,-500.0,0.00010236,2]
[419670723,1775275756254,-300.40994394,0.00010236,2]
[419670724,1775275756275,-16892.02446581,0.00010408,2]
[419670725,1775275756297,-1216.52671213,0.00010408,2]
[419670726,1775275756322,-1538.39669704,0.00010408,2]
[419670727,1775275756559,-500.0,0.00010236,2]
[419670728,1775275756588,-500.0,0.00010236,2]
[419670729,1775275756617,-500.0,0.00010236,2]
[419670730,1775275756672,500.0,0.00010236,2]
[419670731,1775275756856,500.0,0.00010236,2]
[419670732,1775275757014,504.52941329,0.00010236,2]
[419670733,1775275767159,-7203.340354,0.00010408,2]
[419670734,1775275820814,-3650.313,0.00010384,2]
[419670735,1775275820846,-819.54479022,0.00010398,2]
[419670736,1775275821055,-1300.27898027,0.000104,2]
[419670737,1775275821086,-300.0,0.00010406,2]
[419670738,1775275821115,-1200.0,0.00010406,2]
[419670739,1775275821144,-300.0,0.00010406,2]
[419670740,1775275821173,-301.0,0.00010406,2]
[419670741,1775275821202,-500.0,0.00010407,2]
[419670742,1775275821234,-488.00813933,0.00010407,2]
[419670743,1775275821263,-500.0,0.00010407,2]
[419670744,1775275821369,-70.46205352,0.00010407,2]
[419670745,1775275821478,-80.51165376,0.00010407,2]
[419670746,1775275821507,-500.0,0.00010407,2]
[419670747,1775275821534,-500.0,0.00010407,2]
[419670748,1775275821564,-191.85179977,0.00010407,2]
[419670749,1775275821591,-500.0,0.00010407,2]
[419670750,1775275821620,-500.0,0.00010407,2]
[419670751,1775275821647,-500.0,0.00010407,2]
[419670752,1775275821675,-390.96807788,0.00010407,2]
[419670753,1775275821702,-500.0,0.00010407,2]
[419670754,1775275821730,-209.32581642,0.00010407,2]
[419670755,1775275821758,-500.0,0.00010407,2]
[419670756,1775275821786,-500.0,0.00010407,2]
[419670757,1775275821945,-500.0,0.00010407,2]
[419670758,1775275821974,-500.0,0.00010407,2]
[419670759,1775275822002,-500.0,0.00010407,2]
[419670760,1775275822030,-500.0,0.00010407,2]
[419670761,1775275822057,-500.0,0.00010407,2]
[419670762,1775275822084,-500.0,0.00010407,2]
[419670763,1775275822112,-507.15828475,0.00010407,2]
[419670764,1775275822140,-500.0,0.00010407,2]
[419670765,1775275822172,-600.07763383,0.00010407,2]
[419670766,1775275822201,-285.53816284,0.00010407,2]
[419670767,1775275822289,-214.46183716,0.00010407,2]
[419670768,1775275822321,-500.0,0.00010407,2]
[419670769,1775275822355,-600.07763383,0.00010407,2]
[419670770,1775275822386,-477.78659984,0.00010407,2]
[419670771,1775275822422,-600.07763383,0.00010407,2]
[419670772,1775275822458,-600.07763383,0.00010407,2]
[419670773,1775275822491,-600.07763383,0.00010407,2]
[419670774,1775275822524,-600.07763383,0.00010407,2]
[419670775,1775275822560,-600.07763383,0.00010407,2]
[419670776,1775275822628,-600.07763383,0.00010407,2]
[419670777,1775275822661,-600.07763383,0.00010407,2]
[419670778,1775275822693,-600.07763383,0.00010407,2]
[419670779,1775275822725,-600.07763383,0.00010407,2]
[419670780,1775275822757,-600.07763383,0.00010407,2]
[419670781,1775275822789,-600.07763383,0.00010407,2]
[419670782,1775275822821,-600.07763383,0.00010407,2]
[419670783,1775275822854,-600.07763383,0.00010407,2]
[419670784,1775275822972,-600.07763383,0.00010407,2]
[419670785,1775275823007,-600.07763383,0.00010407,2]
[419670786,1775275823041,-600.07763383,0.00010407,2]
[419670787,1775275823076,-600.07763383,0.00010407,2]
[419670788,1775275823108,-600.07763383,0.00010407,2]
[419670789,1775275823142,-600.07763383,0.00010407,2]
[419670790,1775275823176,-600.07763383,0.00010407,2]
[419670791,1775275823210,-600.07763383,0.00010407,2]
[419670792,1775275823367,-600.07763383,0.00010407,2]
[419670793,1775275823399,-600.07763383,0.00010407,2]
[419670794,1775275823432,-600.07763383,0.00010407,2]
[419670795,1775275823468,-600.07763383,0.00010407,2]
[419670796,1775275823503,-600.07763383,0.00010407,2]
[419670797,1775275823531,-500.0,0.00010407,2]
[419670798,1775275823570,-600.07763383,0.00010407,2]
[419670799,1775275823607,-600.07763383,0.00010407,2]
[419670800,1775275823746,-600.07763383,0.00010407,2]
[419670801,1775275823779,-600.07763383,0.00010407,2]
[419670802,1775275823811,-600.07763383,0.00010407,2]
[419670803,1775275823843,-600.07763383,0.00010407,2]
[419670804,1775275823875,-600.07763383,0.00010407,2]
[419670805,1775275823908,-600.07763383,0.00010407,2]
[419670806,1775275823940,-600.07763383,0.00010407,2]
[419670807,1775275824143,-600.07763383,0.00010407,2]
[419670808,1775275826201,-589.30747721,0.00010407,2]
[419670809,1775275826234,-589.30747721,0.00010407,2]
[419670810,1775275826268,-589.30747721,0.00010407,2]
[419670811,1775275826300,-589.30747721,0.00010407,2]
[419670812,1775275826333,-589.30747721,0.00010407,2]
[419670813,1775275826367,-589.30747721,0.00010407,2]
[419670814,1775275826404,-589.30747721,0.00010407,2]
[419670815,1775275826439,-589.30747721,0.00010407,2]
[419670816,1775275826564,-589.30747721,0.00010407,2]
[419670817,1775275826600,-589.30747721,0.00010407,2]
[419670818,1775275826634,-589.30747721,0.00010407,2]
[419670819,1775275826668,-589.30747721,0.00010407,2]
[419670820,1775275826701,-589.30747721,0.00010407,2]
[419670821,1775275826735,-589.30747721,0.00010407,2]
[419670822,1775275826767,-589.30747721,0.00010407,2]
[419670823,1775275826801,-589.30747721,0.00010407,2]
[419670824,1775275827403,-589.30747721,0.00010407,2]
[419670825,1775275827436,-589.30747721,0.00010407,2]
[419670826,1775275827468,-589.30747721,0.00010407,2]
[419670827,1775275827503,-589.30747721,0.00010407,2]
[419670828,1775275827538,-589.30747721,0.00010407,2]
[419670829,1775275827570,-589.30747721,0.00010407,2]
[419670830,1775275827600,-500.0,0.00010407,2]
[419670831,1775275827627,-500.0,0.00010407,2]
[419670832,1775275827654,-428.32027348,0.00010407,2]
[419670833,1775275827705,-71.67972652,0.00010407,2]
[419670834,1775275827733,-396.74080754,0.00010407,2]
[419670835,1775275827760,-500.0,0.00010407,2]
[419670836,1775275827788,-1688.47667606,0.00010408,2]
[419670837,1775275830100,-8754.09454963,0.00010408,2]
[419670838,1775275830115,-10000.01,0.00010408,2]
[419670839,1775275830203,-589.30747718,0.00010407,2]
[419670840,1775275830247,-8821.39504564,0.00010408,2]
[419670841,1775275830282,-10000.01,0.00010408,2]
[419670842,1775275830442,-10000.01,0.00010408,2]
[419670843,1775275830491,-10000.01,0.00010408,2]
[419670845,1775275831686,-287.06431718,0.00010408,2]
[419670846,1775275831697,-894.93568282,0.00010408,2]
[419670847,1775275831708,-31724.81736741,0.00010408,2]
[419670848,1775275831733,-145875.69844949,0.00010408,2]
[419670849,1775275831856,-504.51063217,0.00010408,2]
[419670873,1775275837964,-581.1401268,0.00010408,2]
[419670874,1775275837975,-340.64224758,0.00010408,2]
[419670875,1775275837987,-1093052.40152912,0.00010408,2]
[419670876,1775275837997,-150.0,0.00010408,2]
[419670877,1775275838006,-150.0,0.00010408,2]
[419670878,1775275838016,-500.0,0.00010473,2]
[419670879,1775275838025,-500.0,0.00010473,2]
[419670880,1775275838036,-203.7164708,0.00010473,2]
[419670881,1775275838047,-500.0,0.00010473,2]
[419670882,1775275838058,-500.0,0.00010473,2]
[419670883,1775275838067,-500.0,0.00010473,2]
[419670884,1775275838077,-500.0,0.00010473,2]
[419670885,1775275838086,-375.13980786,0.00010473,2]
[419670886,1775275838095,-500.0,0.00010473,2]
[419670887,1775275838105,-3670.4766423,0.00010473,2]
[419670888,1775275838116,-426.3391128,0.00010473,2]
[419670889,1775275838126,-420.0,0.00010487,2]
[419670890,1775275838136,-255.0,0.00010487,2]
[419670891,1775275838145,-300.0,0.00010487,2]
[419670892,1775275838154,-55394.0,0.00010493,2]
[419670893,1775275838165,-200.0,0.00010499,2]
[419670894,1775275838176,-18.72128205,0.00010499,2]
[419670896,1775275838185,-193.0,0.000105,2]
[419670897,1775275838194,-179.8064311,0.000105,2]
[419670898,1775275838205,-179.8064311,0.000105,2]
[419670899,1775275838214,-179.8064311,0.000105,2]
[419670900,1775275838225,-250.0,0.000105,2]
[419670901,1775275838235,-187.95451372,0.00010501,2]
[419670902,1775275838245,-15253.88,0.00010506,2]
[419670903,1775275838255,-4224.04,0.00010506,2]
[419670904,1775275838265,-819.54479022,0.00010506,2]
[419670905,1775275838274,-150.99,0.00010508,2]
[419670906,1775275838284,-4999.99,0.00010508,2]
[419670907,1775275838294,-999.99,0.00010508,2]
[419670908,1775275838305,-9999.99,0.00010508,2]
[419670909,1775275838315,-1569.88,0.00010508,2]
[419670910,1775275838326,-161.32,0.00010508,2]
[419670911,1775275838336,-150.99,0.00010508,2]
[419670913,1775275838345,-34180.7,0.00010508,2]
[419670914,1775275838356,-299.99,0.00010508,2]
[419670915,1775275838367,-3657.01,0.00010508,2]
[419670916,1775275838378,-1266.82,0.00010508,2]
[419670917,1775275838389,-1032.29,0.00010508,2]
[419670918,1775275838400,-9999.99,0.00010508,2]
[419670919,1775275838411,-9999.99,0.00010508,2]
[419670920,1775275838422,-1570.92,0.00010508,2]
[419670921,1775275838431,-500.0,0.0001051,2]
[419670922,1775275838441,-500.0,0.0001051,2]
[419670923,1775275838453,-500.0,0.0001051,2]
[419670924,1775275838462,-201.9876343,0.0001051,2]
[419670925,1775275838471,-500.0,0.0001051,2]
[419670926,1775275838481,-500.0,0.0001051,2]
[419670927,1775275838490,-500.0,0.0001051,2]
[419670928,1775275838499,-500.0,0.0001051,2]
[419670929,1775275838508,-151.0,0.0001051,2]
[419670930,1775275838517,-500.0,0.0001051,2]
[419670931,1775275838527,-151.0,0.0001051,2]
[419670932,1775275838536,-500.0,0.0001051,2]
[419670933,1775275838545,-151.0,0.0001051,2]
[419670934,1775275838554,-500.0,0.0001051,2]
[419670935,1775275838564,-151.0,0.0001051,2]
[419670936,1775275838573,-500.0,0.0001051,2]
[419670937,1775275838582,-500.0,0.0001051,2]
[419670938,1775275838592,-151.0,0.0001051,2]
[419670939,1775275838602,-500.0,0.0001051,2]
[419670940,1775275838612,-151.0,0.0001051,2]
[419670941,1775275838622,-500.0,0.0001051,2]
[419670942,1775275838634,-151.0,0.0001051,2]
[419670943,1775275838646,-500.0,0.0001051,2]
[419670944,1775275838656,-151.0,0.0001051,2]
[419670945,1775275838666,-500.0,0.0001051,2]
[419670946,1775275838675,-151.0,0.0001051,2]
[419670947,1775275838684,-500.0,0.0001051,2]
[419670948,1775275838697,-500.0,0.0001051,2]
[419670949,1775275838707,-151.0,0.0001051,2]
[419670950,1775275838716,-151.0,0.0001051,2]
[419670951,1775275838724,-500.0,0.0001051,2]
[419670952,1775275838735,-151.0,0.0001051,2]
[419670953,1775275838745,-151.0,0.0001051,2]
[419670954,1775275838755,-500.0,0.0001051,2]
[419670955,1775275838765,-151.0,0.0001051,2]
[419670956,1775275838774,-151.0,0.0001051,2]
[419670957,1775275838784,-500.0,0.0001051,2]
[419670958,1775275838794,-151.0,0.0001051,2]
[419670959,1775275838803,-151.0,0.0001051,2]
[419670960,1775275838813,-500.0,0.0001051,2]
[419670961,1775275838822,-151.0,0.0001051,2]
[419670962,1775275838831,-151.0,0.0001051,2]
[419670963,1775275838841,-151.0,0.0001051,2]
[419670964,1775275838850,-151.0,0.0001051,2]
[419670965,1775275838859,-151.0,0.0001051,2]
[419670966,1775275838868,-151.0,0.0001051,2]
[419670967,1775275838878,-151.0,0.0001051,2]
[419670968,1775275838887,-151.0,0.0001051,2]
[419670969,1775275838897,-151.0,0.0001051,2]
[419670970,1775275838906,-151.0,0.0001051,2]
[419670971,1775275838916,-151.0,0.0001051,2]
[419670972,1775275838926,-151.0,0.0001051,2]
[419670973,1775275838936,-151.0,0.0001051,2]
[419670974,1775275838946,-151.0,0.0001051,2]
[419670975,1775275838955,-151.0,0.0001051,2]
[419670976,1775275838964,-1386.78395259,0.0001051,2]
[419670977,1775275838973,-151.0,0.00010513,2]
[419670978,1775275838983,-151.0,0.00010513,2]
[419670979,1775275838992,-151.0,0.00010513,2]
[419670980,1775275839001,-151.0,0.00010513,2]
[419670981,1775275839011,-500.0,0.00010514,2]
[419670982,1775275839020,-2437.2089,0.00010514,2]
[419670983,1775275839030,-5707.217,0.00010515,2]
[419670984,1775275839039,-314.552,0.00010515,2]
[419670985,1775275839049,-500.0,0.00010515,2]
[419670986,1775275839058,-500.0,0.00010515,2]
[419670987,1775275839069,-479.94413603,0.00010515,2]
[419670988,1775275839080,-500.0,0.00010515,2]
[419670989,1775275839090,-557.39522656,0.00010515,2]
[419670990,1775275839099,-500.0,0.00010515,2]
[419670991,1775275839108,-405.94271343,0.00010515,2]
[419670992,1775275839118,-570.15869012,0.00010515,2]
[419670993,1775275839128,-570.15869012,0.00010515,2]
[419670994,1775275839137,-570.15869012,0.00010515,2]
[419670995,1775275839146,-570.15869012,0.00010515,2]
[419670996,1775275839156,-570.15869012,0.00010515,2]
[419670997,1775275839165,-570.15869012,0.00010515,2]
[419670998,1775275839175,-570.15869012,0.00010515,2]
[419670999,1775275839184,-570.15869012,0.00010515,2]
[419671000,1775275839193,-570.15869012,0.00010515,2]
[419671001,1775275839202,-570.15869012,0.00010515,2]
[419671002,1775275839214,-570.15869012,0.00010515,2]
[419671003,1775275839224,-570.15869012,0.00010515,2]
[419671004,1775275839234,-570.15869012,0.00010515,2]
[419671005,1775275839243,-570.15869012,0.00010515,2]
[419671006,1775275839253,-570.15869012,0.00010515,2]
[419671007,1775275839263,-570.15869012,0.00010515,2]
[419671008,1775275839273,-570.15869012,0.00010515,2]
[419671009,1775275839283,-570.15869012,0.00010515,2]
[419671010,1775275839293,-570.15869012,0.00010515,2]
[419671011,1775275839303,-570.15869012,0.00010515,2]
[419671012,1775275839312,-570.15869012,0.00010515,2]
[419671013,1775275839322,-570.15869012,0.00010515,2]
[419671014,1775275839331,-570.15869012,0.00010515,2]
[419671015,1775275839341,-570.15869012,0.00010515,2]
[419671016,1775275839351,-570.15869012,0.00010515,2]
[419671017,1775275839361,-570.15869012,0.00010515,2]
[419671018,1775275839370,-570.15869012,0.00010515,2]
[419671019,1775275839381,-2500000.0,0.00010516,2]
[419671020,1775275839391,-511.12151388,0.00010573,2]
[419671021,1775275839402,-400.0,0.000106,3]
[419671022,1775275839412,-200.0,0.00010604,2]
[419671023,1775275839423,-1000.0,0.00010616,2]
[419671024,1775275839433,-1718589.029145,0.0001067,2]
[419671025,1775275839443,-500.0,0.00010681,2]
[419671026,1775275839452,-2000.0,0.00010694,2]
[419671027,1775275839461,-182.1,0.000107,3]
[419671028,1775275839471,-182.1,0.000107,3]
[419671029,1775275839481,-182.1,0.000107,3]
[419671030,1775275839492,-800.0,0.000107,3]
[419671031,1775275839502,-121537.07959522,0.000107,2]
[419671032,1775275839512,-200.0,0.0001071,2]
[419671033,1775275839521,-1200.0,0.000108,3]
[419671034,1775275839530,-235.0,0.00010805,2]
[419671035,1775275839541,-160.72,0.00010815,2]
[419671036,1775275839552,-1676.0,0.00010832,2]
[419671037,1775275839562,-177.0,0.00010832,2]
[419671038,1775275839572,-1098.0,0.00010853,2]
[419671039,1775275839583,-1600.0,0.000109,3]
[419671040,1775275839592,-7234.12629663,0.000109,2]
[419671041,1775275839602,-500.0,0.00010955,2]
[419671042,1775275839612,-502.00566011,0.00010959,2]
[419671043,1775275839621,-1000.0,0.00011021,2]
[419671044,1775275839631,-1000.0,0.00011021,2]
[419671045,1775275839710,-500.65746414,0.00011021,2]
[419671046,1775275839719,-1000.0,0.00011021,2]
[419671047,1775275839729,-1000.0,0.00011021,2]
[419671048,1775275839738,-1000.0,0.00011021,2]
[419671049,1775275839747,-315.73243601,0.00011021,2]
[419671050,1775275839756,-186.0,0.00011058,2]
[419671051,1775275839765,-994.42051783,0.00011058,2]
[419671052,1775275839775,-819.54479022,0.00011089,2]
[419671053,1775275839784,-6113.43892192,0.00011099,2]
[419671054,1775275839793,-6113.43892191,0.00011099,2]
[419671055,1775275839803,-6113.43892191,0.00011099,2]
[419671056,1775275839812,-6113.43892191,0.00011099,2]
[419671057,1775275839821,-6113.43892191,0.00011099,2]
[419671058,1775275839831,-6113.43892191,0.00011099,2]
[419671059,1775275839840,-6113.43892191,0.00011099,2]
[419671060,1775275839849,-6113.43892191,0.00011099,2]
[419671061,1775275839858,-6113.43892191,0.00011099,2]
[419671062,1775275839868,-6113.43892191,0.00011099,2]
[419671064,1775275839877,-16075.72626689,0.00011099,2]
[419671065,1775275839886,-16075.72626684,0.00011099,2]
[419671066,1775275839895,-16075.72626684,0.00011099,2]
[419671067,1775275839904,-16075.72626684,0.00011099,2]
[419671068,1775275839914,-16075.72626684,0.00011099,2]
[419671069,1775275839923,-16075.72626684,0.00011099,2]
[419671071,1775275839932,-16075.72626684,0.00011099,2]
[419671073,1775275839941,-16075.72626684,0.00011099,2]
[419671074,1775275839950,-16075.72626684,0.00011099,2]
[419671075,1775275839959,-16075.72626684,0.00011099,2]
[419671076,1775275839968,-7234.12629661,0.00011163,2]
[419671078,1775275839978,-500.0,0.00011229,2]
[419671080,1775275839987,-1175.0,0.00011259,2]
[419671082,1775275839996,-1442.0,0.00011282,2]
[419671084,1775275840006,-307.0,0.00011304,2]
[419671086,1775275840015,-1617.0,0.00011327,2]
[419671088,1775275840024,-600.0,0.00011339,2]
[419671090,1775275840034,-600.0,0.00011339,2]
[419671092,1775275840043,-600.0,0.00011339,2]
[419671094,1775275840052,-600.0,0.00011339,2]
[419671096,1775275840061,-420.0,0.00011442,2]
[419671098,1775275840071,-302.0,0.00011442,2]
[419671100,1775275840080,-600.0,0.00011447,2]
[419671101,1775275840090,-1680.0,0.00011447,2]
[419671103,1775275840100,-5000.0,0.00011448,2]
[419671104,1775275840109,-5000.0,0.00011449,2]
[419671105,1775275840119,-256.89227692,0.00011503,2]
[419671106,1775275840128,-2302.21,0.00011507,2]
[419671107,1775275840137,-24028.95,0.00011534,2]
[419671108,1775275840146,-300.0,0.00011536,2]
[419671109,1775275840156,-433.0,0.00011536,2]
[419671110,1775275840165,-5000.0,0.00011549,2]
[419671111,1775275840174,-193.0,0.00011549,2]
[419671112,1775275840183,-300.0,0.00011549,2]
[419671113,1775275840192,-250.0,0.00011549,2]
[419671114,1775275840202,-5000.0,0.00011549,2]
[419671115,1775275840211,-703.7698014,0.00011568,2]
[419671116,1775275840220,-1500.0,0.00011568,2]
[419671117,1775275840229,-1507.047752,0.00011568,2]
[419671118,1775275840238,-1500.0,0.00011568,2]
[419671119,1775275840247,-1500.0,0.00011568,2]
[419671120,1775275840256,-2000.0,0.00011883,2]
[419671121,1775275840265,-7234.12629661,0.00011952,2]
[419671122,1775275840274,-504.31085202,0.00012116,2]
[419671123,1775275840284,-2000.0,0.00012116,2]
[419671124,1775275840293,-1500.0,0.00012116,2]
[419671125,1775275840303,-1500.0,0.00012464,2]
[419671126,1775275840313,-587.0,0.00012581,2]
[419671127,1775275840322,-2351.0,0.00012592,2]
[419671128,1775275840331,-345.9608693,0.00012664,2]
[419671129,1775275840340,-736.0,0.0001269,2]
[419671130,1775275840350,-7234.12629661,0.00012742,2]
[419671131,1775275840360,-383469.0453024,0.00012767,2]
[419671132,1775275840369,-231.02393565,0.00012987,2]
[419671133,1775275840379,-250.0,0.00013,2]
[419671134,1775275840388,-2000.0,0.00013071,2]
[419671135,1775275840397,-521.0,0.00013111,2]
[419671136,1775275840406,-3670.4766423,0.00013187,2]
[419671137,1775275840416,-426.3391128,0.00013187,2]
[419671138,1775275840425,-1000.0,0.00013203,2]
[419671139,1775275840435,-85563.5094903,0.00013235,2]
[419671140,1775275840444,-1750.13,0.00013349,2]
[419671141,1775275840454,-420.726296,0.00013424,2]
[419671142,1775275840463,-213.9698,0.00013424,2]
[419671143,1775275840473,-3240.0,0.00013425,2]
[419671144,1775275840482,-1000.91,0.00013466,4]
[419671145,1775275840491,-976.5,0.00013466,4]
[419671146,1775275840500,-1027.34,0.00013466,4]
[419671147,1775275840509,-1012.61,0.00013466,4]
[419671148,1775275840518,-1017.35,0.00013466,4]
[419671149,1775275840527,-1012.65,0.00013466,4]
[419671150,1775275840536,-7234.12629661,0.00013531,2]
[419671151,1775275840546,-500.0,0.00013698,2]
[419671152,1775275840555,-500.0,0.00013698,2]
[419671153,1775275840564,-500.0,0.00013698,2]
[419671154,1775275840573,-500.0,0.00013698,2]
[419671155,1775275840583,-500.0,0.00013698,2]
[419671156,1775275840592,-500.0,0.00013698,2]
[419671157,1775275840602,-500.0,0.00013698,2]
[419671158,1775275840611,-160.12835999,0.00013698,2]
[419671159,1775275840620,-500.0,0.00013698,2]
[419671160,1775275840629,-500.0,0.00013698,2]
[419671161,1775275840638,-546.99599556,0.00013698,2]
[419671162,1775275840647,-500.0,0.00013698,2]
[419671163,1775275840657,-500.0,0.00013698,2]
[419671164,1775275840666,-500.0,0.00013698,2]
[419671165,1775275840675,-500.0,0.00013698,2]
[419671166,1775275840684,-500.0,0.00013698,2]
[419671167,1775275840693,-500.0,0.00013698,2]
[419671168,1775275840703,-500.0,0.00013698,2]
[419671169,1775275840712,-500.0,0.00013698,2]
[419671170,1775275840721,-500.0,0.00013698,2]
[419671171,1775275840730,-500.0,0.00013698,2]
[419671172,1775275840739,-500.0,0.00013698,2]
[419671173,1775275840748,-344.77648348,0.00013698,2]
[419671174,1775275840758,-500.0,0.00013698,2]
[419671175,1775275840767,-500.0,0.00013698,2]
[419671176,1775275840777,-500.0,0.00013698,2]
[419671177,1775275840787,-500.0,0.00013698,2]
[419671178,1775275840796,-554.98922439,0.00013698,2]
[419671179,1775275840805,-500.0,0.00013698,2]
[419671180,1775275840814,-500.0,0.00013698,2]
[419671181,1775275840825,-500.0,0.00013698,2]
[419671182,1775275840834,-500.0,0.00013698,2]
[419671183,1775275840845,-500.0,0.00013698,2]
[419671184,1775275840855,-500.0,0.00013698,2]
[419671185,1775275840864,-500.0,0.00013698,2]
[419671186,1775275840873,-500.0,0.00013698,2]
[419671187,1775275840882,-500.0,0.00013698,2]
[419671188,1775275840892,-500.0,0.00013698,2]
[419671189,1775275840901,-500.0,0.00013698,2]